Workbook

Sheet BSRN_rad1
A1: Line ID | B1: Year | C1: Julian Day | D1: Hour/Min | E1: Logger Voltage | F1: Logger Temp | G1: PIR Thermopile | H1: PIR Thermopile standard deviation | I1: PIR Case Temp (mV) | J1: PIR Dome Temp (mV) | K1: NIP mv | L1: NIP mv standard deviation | M1: Eppley PSP mv | N1: Eppley PSP mv STD | O1: Eppley B&W mv | P1: Eppley B&W mv STD | Q1: K&Z (Global) mv | R1: K&Z (Global) mv STD | S1: Russian Photometer mv | T1: RTD1 TEMP C | U1: RTD1 r | V1: RTD1 e | W1: RTD1 m | X1: RTD2 TEMP C | Y1: RTD2 r | Z1: RTD2 e | AA1: RTD2 m | AB1: Service Switch | AD1: Smoothed data with calibration factors --> | AF1: PIR temp case (deg K) | AG1: PIR temp dome (deg K) | AH1: Calculated PIR thermopile (W/m^2) | AI1: Calculated Eppley PSP (W/m^2) | AJ1: Calculated Eppley B&W PSP (W/m^2) | AK1: Calculated K&Z (Global) PSP (W/m^2) | AL1: Calculated NIP (W/m^2)
A2: 101 | B2: 2012 | C2: 290 | D2: 1200 | E2: 14.22 | F2: -8.92 | G2: -0.25539 | H2: 0.00046 | I2: 50.291 | J2: 51.232 | K2: -0.00355 | L2: 0.00036 | M2: -0.03184 | N2: 0.00037 | O2: 0.00109 | P2: 0.00037 | Q2: -0.00873 | R2: 0.00036 | S2: 0.00171 | T2: -14.629 | U2: -5.6332 | V2: 912.56 | W2: 86.115 | X2: -99999 | Y2: -99999 | Z2: 0 | AA2: -0.32543 | AB2: 1666.2 | AD2: PIR cal # (SF) | AF2: =1/((0.0010295+0.0002391*LOG(I2*1000)+0.0000001568*LOG(I2*1000)^3)) -> 460.8462151 | AG2: =1/((0.0010295+0.0002391*LOG(J2*1000)+0.0000001568*LOG(J2*1000)^3)) -> 460.4199697 | AH2: =($AE$5*G2)+$AE$6*((1*(AF2^4))+($AE$9*((AF2^4)-(AG2^4)))) -> 2509.404612 | AI2: =1000*(M2/$AE$10) -> -3.634703196 | AJ2: =1000*(O2/$AE$11) -> 0.125 | AK2: =1000*(Q2/$AE$12) -> -0.9287234043 | AL2: =1000*(K2/$AE$14) -> -0.443196005
A3: 101 | B3: 2012 | C3: 290 | D3: 1201 | E3: 14.22 | F3: -8.91 | G3: -0.25383 | H3: 0.00095 | I3: 50.325 | J3: 51.479 | K3: -0.00327 | L3: 0.00024 | M3: -0.03167 | N3: 0.00028 | O3: 0.00089 | P3: 0.00025 | Q3: -0.00883 | R3: 0.00025 | S3: 0.00174 | T3: -14.628 | U3: -5.6328 | V3: 912.55 | W3: 86.115 | X3: -99999 | Y3: -99999 | Z3: 0 | AA3: -0.29206 | AB3: 1666.2 | AD3: =(1/329.43)*1000 -> 3.035546247 | AF3: =1/((0.0010295+0.0002391*LOG(I3*1000)+0.0000001568*LOG(I3*1000)^3)) -> 460.8306629 | AG3: =1/((0.0010295+0.0002391*LOG(J3*1000)+0.0000001568*LOG(J3*1000)^3)) -> 460.3095018 | AH3: =($AE$5*G3)+$AE$6*((1*(AF3^4))+($AE$9*((AF3^4)-(AG3^4)))) -> 2517.551059 | AI3: =1000*(M3/$AE$10) -> -3.615296804 | AJ3: =1000*(O3/$AE$11) -> 0.1020642202 | AK3: =1000*(Q3/$AE$12) -> -0.9393617021 | AL3: =1000*(K3/$AE$14) -> -0.4082397004
A4: 101 | B4: 2012 | C4: 290 | D4: 1202 | E4: 14.22 | F4: -8.91 | G4: -0.2514 | H4: 0.0008 | I4: 50.409 | J4: 51.421 | K4: -0.00253 | L4: 0.00035 | M4: -0.03122 | N4: 0.00033 | O4: 0.00099 | P4: 0.00038 | Q4: -0.00895 | R4: 0.00033 | S4: 0.00114 | T4: -14.628 | U4: -5.6328 | V4: 912.55 | W4: 86.115 | X4: -99999 | Y4: -99999 | Z4: 0 | AA4: -0.27954 | AB4: 1666.2 | AD4: [above] cal units: microvolts/watt/square meter | AF4: 460.792289 | AG4: 460.3353895 | AH4: 2512.087086 | AI4: =1000*(M4/$AE$10) -> -3.563926941 | AJ4: =1000*(O4/$AE$11) -> 0.1135321101 | AK4: =1000*(Q4/$AE$12) -> -0.9521276596 | AL4: =1000*(K4/$AE$14) -> -0.315855181
A5: 101 | B5: 2012 | C5: 290 | D5: 1203 | E5: 14.22 | F5: -8.91 | G5: -0.24885 | H5: 0.00091 | I5: 50.558 | J5: 51.373 | K5: -0.00159 | L5: 0.00034 | M5: -0.0305 | N5: 0.00037 | O5: 0.00099 | P5: 0.00031 | Q5: -0.00918 | R5: 0.00033 | S5: 0.00064 | T5: -14.628 | U5: -5.6328 | V5: 912.55 | W5: 86.115 | X5: -99999 | Y5: -99999 | Z5: 0.00417 | AA5: -0.28788 | AB5: 1666.2 | AD5: PIR cal # (SF) in W/mV/m^2 | AE5: 329.43 | AF5: 460.7243925 | AG5: 460.356838 | AH5: 2503.892948 | AI5: -3.48173516 | AJ5: 0.1135321101 | AK5: -0.9765957447 | AL5: -0.1985018727
A6: 101 | B6: 2012 | C6: 290 | D6: 1204 | E6: 14.22 | F6: -8.91 | G6: -0.24731 | H6: 0.00055 | I6: 50.571 | J6: 51.331 | K6: -0.0005 | L6: 0.00031 | M6: -0.02939 | N6: 0.00044 | O6: 0.00082 | P6: 0.00028 | Q6: -0.0098 | R6: 0.00035 | S6: 0.00012 | T6: -14.593 | U6: -5.619 | V6: 912.55 | W6: 86.127 | X6: -99999 | Y6: -99999 | Z6: 0 | AA6: -0.27537 | AB6: 1666.2 | AD6: sigma | AE6: =5.6704*(10^(-8)) -> 5.6704e-08 | AF6: 460.718479 | AG6: 460.3756234 | AH6: 2502.190911 | AI6: -3.355022831 | AJ6: 0.09403669725 | AK6: -1.042553191 | AL6: -0.06242197253
A7: 101 | B7: 2012 | C7: 290 | D7: 1205 | E7: 14.22 | F7: -8.91 | G7: -0.24686 | H7: 0.00044 | I7: 50.505 | J7: 51.417 | K7: -0.00042 | L7: 0.00018 | M7: -0.02862 | N7: 0.00039 | O7: 0.00097 | P7: 0.00037 | Q7: -0.01012 | R7: 0.00033 | S7: 0.00015 | T7: -14.569 | U7: -5.6099 | V7: 912.55 | W7: 86.136 | X7: -99999 | Y7: -99999 | Z7: 0 | AA7: -0.29206 | AB7: 1666.2 | AD7: TC | AE7: 1/((0.0010295+0.0002391*log(TCR*1000)+0.0000001568*log(TCR*1000)^3)) | AF7: 460.7485185 | AG7: 460.3371761 | AH7: 2508.770733 | AI7: -3.267123288 | AJ7: 0.1112385321 | AK7: -1.076595745 | AL7: -0.05243445693
A8: 101 | B8: 2012 | C8: 290 | D8: 1206 | E8: 14.22 | F8: -8.91 | G8: -0.24724 | H8: 0.0004 | I8: 50.622 | J8: 51.467 | K8: -0.00082 | L8: 0.00028 | M8: -0.028 | N8: 0.0004 | O8: 0.00117 | P8: 0.00028 | Q8: -0.01054 | R8: 0.00031 | S8: 0.00072 | T8: -14.533 | U8: -5.5962 | V8: 912.55 | W8: 86.148 | X8: -99999 | Y8: -99999 | Z8: 0.00417 | AA8: -0.28788 | AB8: 1666.2 | AD8: TD | AE8: 1/((0.0010295+0.0002391*log(TDR*1000)+0.0000001568*log(TDR*1000)^3)) | AF8: 460.695296 | AG8: 460.3148553 | AH8: 2504.855455 | AI8: -3.196347032 | AJ8: 0.1341743119 | AK8: -1.121276596 | AL8: -0.102372035
A9: 101 | B9: 2012 | C9: 290 | D9: 1207 | E9: 14.22 | F9: -8.91 | G9: -0.24919 | H9: 0.00103 | I9: 50.555 | J9: 51.456 | K9: -0.00139 | L9: 0.00049 | M9: -0.02775 | N9: 0.00037 | O9: 0.00141 | P9: 0.00032 | Q9: -0.01054 | R9: 0.00021 | S9: 0.00124 | T9: -14.508 | U9: -5.5866 | V9: 912.55 | W9: 86.157 | X9: -99999 | Y9: -99999 | Z9: 0.00417 | AA9: -0.27537 | AB9: 1666.2 | AD9: dome correction factor | AE9: 3.8 | AF9: 460.7257574 | AG9: 460.3197638 | AH9: 2507.043434 | AI9: =1000*(M9/$AE$10) -> -3.167808219 | AJ9: =1000*(O9/$AE$11) -> 0.1616972477 | AK9: =1000*(Q9/$AE$12) -> -1.121276596 | AL9: =1000*(K9/$AE$14) -> -0.1735330836
A10: 101 | B10: 2012 | C10: 290 | D10: 1208 | E10: 14.23 | F10: -8.91 | G10: -0.2513 | H10: 0.0005 | I10: 50.689 | J10: 51.562 | K10: -0.00268 | L10: 0.00033 | M10: -0.0281 | N10: 0.00036 | O10: 0.00141 | P10: 0.00039 | Q10: -0.01066 | R10: 0.0004 | S10: 0.00191 | T10: -14.605 | U10: -5.6236 | V10: 912.55 | W10: 86.123 | X10: -99999 | Y10: -99999 | Z10: 0 | AA10: -0.28371 | AB10: 1666.2 | AD10: PSP Eppley cal # (microVolts/W/m^2) | AE10: 8.76 | AF10: 460.6648786 | AG10: 460.2725109 | AH10: 2503.839523 | AI10: -3.207762557 | AJ10: 0.1616972477 | AK10: -1.134042553 | AL10: -0.3345817728
A11: 101 | B11: 2012 | C11: 290 | D11: 1209 | E11: 14.22 | F11: -8.91 | G11: -0.25155 | H11: 0.0002 | I11: 50.656 | J11: 51.633 | K11: -0.0032 | L11: 0.00029 | M11: -0.02862 | N11: 0.00045 | O11: 0.00136 | P11: 0.00027 | Q11: -0.01064 | R11: 0.00033 | S11: 0.00184 | T11: -14.628 | U11: -5.6328 | V11: 912.55 | W11: 86.115 | X11: -99999 | Y11: -99999 | Z11: 0 | AA11: -0.29623 | AB11: 1666.2 | AD11: PSP Eppley B&W cal # (microVolts/W/m^2) | AE11: 8.72 | AF11: 460.6798548 | AG11: 460.2409197 | AH11: 2508.00594 | AI11: -3.267123288 | AJ11: 0.1559633028 | AK11: -1.131914894 | AL11: -0.3995006242
A12: 101 | B12: 2012 | C12: 290 | D12: 1210 | E12: 14.23 | F12: -8.91 | G12: -0.2512 | H12: 0.00033 | I12: 50.76 | J12: 51.759 | K12: -0.00298 | L12: 0.00038 | M12: -0.02906 | N12: 0.00029 | O12: 0.00141 | P12: 0.00036 | Q12: -0.01032 | R12: 0.00034 | S12: 0.00188 | T12: -14.628 | U12: -5.6328 | V12: 912.55 | W12: 86.115 | X12: -99999 | Y12: -99999 | Z12: 0 | AA12: -0.2712 | AB12: 1666.2 | AD12: PSP K&Z (Global) cal # (microVolts/W/m^2) | AE12: 9.4 | AF12: 460.6326931 | AG12: 460.1849729 | AH12: 2507.802144 | AI12: -3.317351598 | AJ12: 0.1616972477 | AK12: -1.09787234 | AL12: -0.3720349563
A13: 101 | B13: 2012 | C13: 290 | D13: 1211 | E13: 14.22 | F13: -8.91 | G13: -0.25083 | H13: 0.00031 | I13: 50.773 | J13: 51.8 | K13: -0.00265 | L13: 0.00024 | M13: -0.02934 | N13: 0.00024 | O13: 0.00159 | P13: 0.0003 | Q13: -0.01024 | R13: 0.00036 | S13: 0.00174 | T13: -14.628 | U13: -5.6328 | V13: 912.55 | W13: 86.115 | X13: -99999 | Y13: -99999 | Z13: 0.00834 | AA13: -0.27954 | AB13: 1666.2 | AD13: Russian cal # (microVolts/W/m^2) | AE13: 9.13 | AF13: 460.6268053 | AG13: 460.1668001 | AH13: 2508.82387 | AI13: -3.349315068 | AJ13: 0.1823394495 | AK13: -1.089361702 | AL13: -0.3308364544
A14: 101 | B14: 2012 | C14: 290 | D14: 1212 | E14: 14.23 | F14: -8.91 | G14: -0.25165 | H14: 0.00048 | I14: 50.979 | J14: 51.738 | K14: -0.00295 | L14: 0.00037 | M14: -0.02951 | N14: 0.00029 | O14: 0.00174 | P14: 0.00037 | Q14: -0.01012 | R14: 0.00024 | S14: 0.00188 | T14: -14.628 | U14: -5.6328 | V14: 912.55 | W14: 86.115 | X14: -99999 | Y14: -99999 | Z14: 0.00417 | AA14: -0.29623 | AB14: 1666.2 | AD14: NIP (microVolts/W/m^2) | AE14: 8.01 | AF14: 460.5337256 | AG14: 460.1942871 | AH14: 2496.343874 | AI14: -3.368721461 | AJ14: 0.1995412844 | AK14: -1.076595745 | AL14: -0.368289638
A15: 101 | B15: 2012 | C15: 290 | D15: 1213 | E15: 14.23 | F15: -8.92 | G15: -0.25244 | H15: 0.00027 | I15: 50.876 | J15: 51.859 | K15: -0.00332 | L15: 0.00023 | M15: -0.03001 | N15: 0.00033 | O15: 0.00151 | P15: 0.00029 | Q15: -0.00992 | R15: 0.00038 | S15: 0.00179 | T15: -14.64 | U15: -5.6373 | V15: 912.55 | W15: 86.111 | X15: -99999 | Y15: -99999 | Z15: 0 | AA15: -0.30875 | AB15: 1666.2 | AF15: 460.580214 | AG15: 460.1406765 | AH15: 2505.530494 | AI15: -3.425799087 | AJ15: 0.1731651376 | AK15: -1.055319149 | AL15: -0.4144818976
A16: 101 | B16: 2012 | C16: 290 | D16: 1214 | E16: 14.23 | F16: -8.93 | G16: -0.25229 | H16: 0.00032 | I16: 50.932 | J16: 52.104 | K16: -0.00307 | L16: 0.00034 | M16: -0.03013 | N16: 0.00031 | O16: 0.00144 | P16: 0.00015 | Q16: -0.01012 | R16: 0.00033 | S16: 0.00181 | T16: -14.644 | U16: -5.6386 | V16: 912.56 | W16: 86.111 | X16: -99999 | Y16: -99999 | Z16: 0 | AA16: -0.28371 | AB16: 1666.2 | AF16: 460.554926 | AG16: 460.0325434 | AH16: 2511.96702 | AI16: -3.439497717 | AJ16: 0.1651376147 | AK16: -1.076595745 | AL16: -0.3832709114
A17: 101 | B17: 2012 | C17: 290 | D17: 1215 | E17: 14.23 | F17: -8.93 | G17: -0.2519 | H17: 0.00031 | I17: 51.012 | J17: 52.027 | K17: -0.0027 | L17: 0.00029 | M17: -0.02966 | N17: 0.0003 | O17: 0.00134 | P17: 0.00042 | Q17: -0.01029 | R17: 0.00027 | S17: 0.00171 | T17: -14.632 | U17: -5.6341 | V17: 912.56 | W17: 86.115 | X17: -99999 | Y17: -99999 | Z17: 0 | AA17: -0.25868 | AB17: 1666.2 | AF17: 460.5188529 | AG17: 460.0664682 | AH17: 2505.412383 | AI17: -3.385844749 | AJ17: 0.1536697248 | AK17: -1.094680851 | AL17: -0.3370786517
A18: 101 | B18: 2012 | C18: 290 | D18: 1216 | E18: 14.23 | F18: -8.93 | G18: -0.25227 | H18: 0.00055 | I18: 51.067 | J18: 52.086 | K18: -0.00211 | L18: 0.00027 | M18: -0.02941 | N18: 0.00039 | O18: 0.00126 | P18: 0.0004 | Q18: -0.01051 | R18: 0.00025 | S18: 0.00149 | T18: -14.645 | U18: -5.6391 | V18: 912.57 | W18: 86.111 | X18: -99999 | Y18: -99999 | Z18: 0 | AA18: -0.32126 | AB18: 1666.2 | AF18: 460.4940885 | AG18: 460.0404689 | AH18: 2504.839435 | AI18: -3.357305936 | AJ18: 0.1444954128 | AK18: -1.118085106 | AL18: -0.2634207241
A19: 101 | B19: 2012 | C19: 290 | D19: 1217 | E19: 14.23 | F19: -8.93 | G19: -0.25324 | H19: 0.00029 | I19: 51.139 | J19: 52.038 | K19: -0.0028 | L19: 0.00028 | M19: -0.02904 | N19: 0.00037 | O19: 0.00146 | P19: 0.00037 | Q19: -0.01049 | R19: 0.00018 | S19: 0.00184 | T19: -14.681 | U19: -5.6532 | V19: 912.57 | W19: 86.098 | X19: -99999 | Y19: -99999 | Z19: 0 | AA19: -0.28371 | AB19: 1666.2 | AF19: 460.4617136 | AG19: 460.0616184 | AH19: 2499.303471 | AI19: -3.315068493 | AJ19: 0.1674311927 | AK19: -1.115957447 | AL19: -0.3495630462
A20: 101 | B20: 2012 | C20: 290 | D20: 1218 | E20: 14.23 | F20: -8.93 | G20: -0.25282 | H20: 0.00047 | I20: 51.191 | J20: 52.155 | K20: -0.00258 | L20: 0.00034 | M20: -0.02921 | N20: 0.00035 | O20: 0.00141 | P20: 0.00032 | Q20: -0.01037 | R20: 0.00035 | S20: 0.00166 | T20: -14.686 | U20: -5.6549 | V20: 912.59 | W20: 86.098 | X20: -99999 | Y20: -99999 | Z20: 0 | AA20: -0.30457 | AB20: 1666.2 | AF20: 460.4383627 | AG20: 460.0101039 | AH20: 2501.282804 | AI20: -3.334474886 | AJ20: 0.1616972477 | AK20: -1.103191489 | AL20: -0.3220973783
A21: 101 | B21: 2012 | C21: 290 | D21: 1219 | E21: 14.23 | F21: -8.95 | G21: -0.25167 | H21: 0.00046 | I21: 51.2 | J21: 52.237 | K21: -0.00188 | L21: 0.00049 | M21: -0.02914 | N21: 0.00038 | O21: 0.00124 | P21: 0.00033 | Q21: -0.01051 | R21: 0.00034 | S21: 0.00141 | T21: -14.753 | U21: -5.6806 | V21: 912.57 | W21: 86.073 | X21: -99999 | Y21: -99999 | Z21: 0.00834 | AA21: -0.28371 | AB21: 1666.2 | AF21: 460.4343238 | AG21: 459.9740748 | AH21: 2504.254889 | AI21: -3.326484018 | AJ21: 0.1422018349 | AK21: -1.118085106 | AL21: -0.2347066167
A22: 101 | B22: 2012 | C22: 290 | D22: 1220 | E22: 14.23 | F22: -8.96 | G22: -0.25113 | H22: 0.00042 | I22: 51.293 | J22: 52.123 | K22: -0.00134 | L22: 0.00032 | M22: -0.02896 | N22: 0.00036 | O22: 0.00119 | P22: 0.0004 | Q22: -0.01042 | R22: 0.00031 | S22: 0.00104 | T22: -14.671 | U22: -5.6491 | V22: 912.58 | W22: 86.102 | X22: -99999 | Y22: -99999 | Z22: 0.00417 | AA22: -0.3004 | AB22: 1666.2 | AF22: 460.3926341 | AG22: 460.0241808 | AH22: 2495.79938 | AI22: -3.305936073 | AJ22: 0.1364678899 | AK22: -1.108510638 | AL22: -0.1672908864
A23: 101 | B23: 2012 | C23: 290 | D23: 1221 | E23: 14.23 | F23: -8.96 | G23: -0.25009 | H23: 0.00035 | I23: 51.271 | J23: 52.193 | K23: -0.00045 | L23: 0.00035 | M23: -0.02847 | N23: 0.00043 | O23: 0.00097 | P23: 0.00025 | Q23: -0.01079 | R23: 0.00027 | S23: 0.00067 | T23: -14.67 | U23: -5.6486 | V23: 912.57 | W23: 86.102 | X23: -99999 | Y23: -99999 | Z23: 0.00417 | AA23: -0.27119 | AB23: 1666.2 | AF23: 460.4024887 | AG23: 459.9933998 | AH23: 2499.771491 | AI23: -3.25 | AJ23: 0.1112385321 | AK23: -1.14787234 | AL23: -0.05617977528
A24: 101 | B24: 2012 | C24: 290 | D24: 1222 | E24: 14.23 | F24: -8.97 | G24: -0.24942 | H24: 0.00047 | I24: 51.363 | J24: 52.243 | K24: -2e-05 | L24: 0.00029 | M24: -0.02762 | N24: 0.00047 | O24: 0.00087 | P24: 0.00031 | Q24: -0.01091 | R24: 0.00031 | S24: 0.0003 | T24: -14.655 | U24: -5.6432 | V24: 912.56 | W24: 86.107 | X24: -99999 | Y24: -99999 | Z24: 0.00417 | AA24: -0.28371 | AB24: 1666.2 | AF24: 460.3613092 | AG24: 459.971441 | AH24: 2497.459481 | AI24: -3.152968037 | AJ24: 0.0997706422 | AK24: -1.160638298 | AL24: -0.002496878901
A25: 101 | B25: 2012 | C25: 290 | D25: 1223 | E25: 14.23 | F25: -8.98 | G25: -0.24919 | H25: 0.00033 | I25: 51.378 | J25: 52.191 | K25: 0.00032 | L25: 0.00032 | M25: -0.027 | N25: 0.00037 | O25: 0.00107 | P25: 0.00028 | Q25: -0.01126 | R25: 0.00035 | S25: 0.00064 | T25: -14.632 | U25: -5.6341 | V25: 912.56 | W25: 86.115 | X25: -99999 | Y25: -99999 | Z25: 0.00834 | AA25: -0.30457 | AB25: 1666.2 | AF25: 460.3546028 | AG25: 459.9942786 | AH25: 2494.907173 | AI25: -3.082191781 | AJ25: 0.122706422 | AK25: -1.19787234 | AL25: 0.03995006242
A26: 101 | B26: 2012 | C26: 290 | D26: 1224 | E26: 14.23 | F26: -8.98 | G26: -0.24895 | H26: 0.00033 | I26: 51.425 | J26: 52.222 | K26: -2e-05 | L26: 0.00033 | M26: -0.02656 | N26: 0.00029 | O26: 0.00129 | P26: 0.00024 | Q26: -0.01141 | R26: 0.00027 | S26: 0.00092 | T26: -14.628 | U26: -5.6328 | V26: 912.55 | W26: 86.115 | X26: -99999 | Y26: -99999 | Z26: 0.00417 | AA26: -0.27537 | AB26: 1666.2 | AF26: 460.3336032 | AG26: 459.9806609 | AH26: 2493.898235 | AI26: -3.03196347 | AJ26: 0.1479357798 | AK26: -1.213829787 | AL26: -0.002496878901
A27: 101 | B27: 2012 | C27: 290 | D27: 1225 | E27: 14.23 | F27: -8.99 | G27: -0.24915 | H27: 0.00028 | I27: 51.478 | J27: 52.357 | K27: 0.00027 | L27: 0.00046 | M27: -0.02626 | N27: 0.0004 | O27: 0.00122 | P27: 0.00029 | Q27: -0.01161 | R27: 0.00029 | S27: 0.00079 | T27: -14.628 | U27: -5.6328 | V27: 912.55 | W27: 86.115 | X27: -99999 | Y27: -99999 | Z27: 0 | AA27: -0.28371 | AB27: 1666.2 | AF27: 460.3099479 | AG27: 459.9214605 | AH27: 2496.28527 | AI27: -2.997716895 | AJ27: 0.1399082569 | AK27: -1.235106383 | AL27: 0.03370786517
A28: 101 | B28: 2012 | C28: 290 | D28: 1226 | E28: 14.23 | F28: -9 | G28: -0.24835 | H28: 0.00027 | I28: 51.47 | J28: 52.225 | K28: 0.00045 | L28: 0.00035 | M28: -0.02596 | N28: 0.00036 | O28: 0.00144 | P28: 0.00027 | Q28: -0.01178 | R28: 0.00041 | S28: 0.00079 | T28: -14.628 | U28: -5.6328 | V28: 912.55 | W28: 86.115 | X28: -99999 | Y28: -99999 | Z28: 0.00834 | AA28: -0.28371 | AB28: 1666.2 | AF28: 460.3135168 | AG28: 459.9793435 | AH28: 2492.073324 | AI28: -2.96347032 | AJ28: 0.1651376147 | AK28: -1.253191489 | AL28: 0.05617977528
A29: 101 | B29: 2012 | C29: 290 | D29: 1227 | E29: 14.23 | F29: -9 | G29: -0.24808 | H29: 0.00037 | I29: 51.46 | J29: 52.179 | K29: 0.00069 | L29: 0.00024 | M29: -0.02562 | N29: 0.00032 | O29: 0.00141 | P29: 0.00024 | Q29: -0.01198 | R29: 0.00024 | S29: 0.00057 | T29: -14.628 | U29: -5.6328 | V29: 912.55 | W29: 86.115 | X29: -99999 | Y29: -99999 | Z29: 0.00417 | AA29: -0.26285 | AB29: 1666.2 | AF29: 460.3179788 | AG29: 459.9995524 | AH29: 2490.9408 | AI29: -2.924657534 | AJ29: 0.1616972477 | AK29: -1.274468085 | AL29: 0.0861423221
A30: 101 | B30: 2012 | C30: 290 | D30: 1228 | E30: 14.23 | F30: -9.02 | G30: -0.24781 | H30: 0.00024 | I30: 51.502 | J30: 52.31 | K30: 0.00062 | L30: 0.00031 | M30: -0.02542 | N30: 0.00031 | O30: 0.00141 | P30: 0.00028 | Q30: -0.012 | R30: 0.0003 | S30: 0.00102 | T30: -14.628 | U30: -5.6328 | V30: 912.55 | W30: 86.115 | X30: -99999 | Y30: -99999 | Z30: 0.00417 | AA30: -0.28788 | AB30: 1666.2 | AF30: 460.2992448 | AG30: 459.9420521 | AH30: 2493.863493 | AI30: -2.901826484 | AJ30: 0.1616972477 | AK30: -1.276595745 | AL30: 0.07740324594
A31: 101 | B31: 2012 | C31: 290 | D31: 1229 | E31: 14.23 | F31: -9.02 | G31: -0.2483 | H31: 0.00042 | I31: 51.439 | J31: 52.282 | K31: 0.00079 | L31: 0.00033 | M31: -0.02522 | N31: 0.00032 | O31: 0.00146 | P31: 0.00033 | Q31: -0.01178 | R31: 0.00031 | S31: 0.00094 | T31: -14.628 | U31: -5.6328 | V31: 912.55 | W31: 86.115 | X31: -99999 | Y31: -99999 | Z31: 0.00417 | AA31: -0.29623 | AB31: 1666.2 | AF31: 460.327352 | AG31: 459.954329 | AH31: 2495.65711 | AI31: -2.878995434 | AJ31: 0.1674311927 | AK31: -1.253191489 | AL31: 0.0986267166
A32: 101 | B32: 2012 | C32: 290 | D32: 1230 | E32: 14.23 | F32: -9.03 | G32: -0.249 | H32: 0.00033 | I32: 51.512 | J32: 52.338 | K32: 0.00015 | L32: 0.00039 | M32: -0.02534 | N32: 0.00044 | O32: 0.00149 | P32: 0.00027 | Q32: -0.0118 | R32: 0.00037 | S32: 0.00141 | T32: -14.628 | U32: -5.6328 | V32: 912.55 | W32: 86.115 | X32: -99999 | Y32: -99999 | Z32: 0 | AA32: -0.27954 | AB32: 1666.2 | AF32: 460.2947868 | AG32: 459.9297823 | AH32: 2494.027062 | AI32: -2.892694064 | AJ32: 0.1708715596 | AK32: -1.255319149 | AL32: 0.01872659176
A33: 101 | B33: 2012 | C33: 290 | D33: 1231 | E33: 14.23 | F33: -9.04 | G33: -0.24939 | H33: 0.00036 | I33: 51.536 | J33: 52.3 | K33: -0.00017 | L33: 0.00036 | M33: -0.02557 | N33: 0.00029 | O33: 0.00134 | P33: 0.00028 | Q33: -0.01153 | R33: 0.00031 | S33: 0.00129 | T33: -14.641 | U33: -5.6378 | V33: 912.55 | W33: 86.111 | X33: -99999 | Y33: -99999 | Z33: 0 | AA33: -0.28788 | AB33: 1666.2 | AF33: 460.2840914 | AG33: 459.9464359 | AH33: 2491.366474 | AI33: -2.918949772 | AJ33: 0.1536697248 | AK33: -1.226595745 | AL33: -0.02122347066
A34: 101 | B34: 2012 | C34: 290 | D34: 1232 | E34: 14.23 | F34: -9.04 | G34: -0.25083 | H34: 0.001 | I34: 51.519 | J34: 52.358 | K34: -0.00025 | L34: 0.00043 | M34: -0.02567 | N34: 0.00044 | O34: 0.00141 | P34: 0.00032 | Q34: -0.01126 | R34: 0.00042 | S34: 0.00166 | T34: -14.631 | U34: -5.6336 | V34: 912.56 | W34: 86.115 | X34: -99999 | Y34: -99999 | Z34: 0.00417 | AA34: -0.29623 | AB34: 1666.2 | AF34: 460.2916667 | AG34: 459.9210226 | AH34: 2493.827467 | AI34: -2.930365297 | AJ34: 0.1616972477 | AK34: -1.19787234 | AL34: -0.03121098627
A35: 101 | B35: 2012 | C35: 290 | D35: 1233 | E35: 14.23 | F35: -9.06 | G35: -0.25175 | H35: 0.00051 | I35: 51.565 | J35: 52.384 | K35: -0.00114 | L35: 0.00047 | M35: -0.02581 | N35: 0.00029 | O35: 0.00169 | P35: 0.00033 | Q35: -0.01113 | R35: 0.00037 | S35: 0.00174 | T35: -14.703 | U35: -5.6615 | V35: 912.56 | W35: 86.09 | X35: -99999 | Y35: -99999 | Z35: 0 | AA35: -0.27119 | AB35: 1666.2 | AF35: 460.2711751 | AG35: 459.9096405 | AH35: 2492.303245 | AI35: -2.946347032 | AJ35: 0.1938073394 | AK35: -1.184042553 | AL35: -0.1423220974
A36: 101 | B36: 2012 | C36: 290 | D36: 1234 | E36: 14.23 | F36: -9.07 | G36: -0.25138 | H36: 0.00063 | I36: 51.541 | J36: 52.508 | K36: -0.00193 | L36: 0.00038 | M36: -0.02601 | N36: 0.00029 | O36: 0.00171 | P36: 0.00029 | Q36: -0.01091 | R36: 0.00031 | S36: 0.00188 | T36: -14.789 | U36: -5.6948 | V36: 912.57 | W36: 86.061 | X36: -99999 | Y36: -99999 | Z36: 0 | AA36: -0.26285 | AB36: 1666.2 | AF36: 460.2818639 | AG36: 459.855441 | AH36: 2498.103408 | AI36: -2.969178082 | AJ36: 0.1961009174 | AK36: -1.160638298 | AL36: -0.240948814
A37: 101 | B37: 2012 | C37: 290 | D37: 1235 | E37: 14.23 | F37: -9.07 | G37: -0.25066 | H37: 0.00029 | I37: 51.677 | J37: 52.489 | K37: -0.00077 | L37: 0.00066 | M37: -0.02626 | N37: 0.00029 | O37: 0.00154 | P37: 0.00027 | Q37: -0.01049 | R37: 0.00036 | S37: 0.00156 | T37: -14.696 | U37: -5.6586 | V37: 912.58 | W37: 86.094 | X37: -99999 | Y37: -99999 | Z37: 0.00417 | AA37: -0.29206 | AB37: 1666.2 | AF37: 460.2213658 | AG37: 459.8637367 | AH37: 2491.223685 | AI37: -2.997716895 | AJ37: 0.1766055046 | AK37: -1.115957447 | AL37: -0.0961298377
A38: 101 | B38: 2012 | C38: 290 | D38: 1236 | E38: 14.23 | F38: -9.09 | G38: -0.25108 | H38: 0.00027 | I38: 51.681 | J38: 52.531 | K38: -0.00035 | L38: 0.00035 | M38: -0.02589 | N38: 0.0003 | O38: 0.00149 | P38: 0.00022 | Q38: -0.01069 | R38: 0.00037 | S38: 0.00161 | T38: -14.733 | U38: -5.6732 | V38: 912.59 | W38: 86.081 | X38: -99999 | Y38: -99999 | Z38: 0 | AA38: -0.3004 | AB38: 1666.2 | AF38: 460.2195891 | AG38: 459.8454033 | AH38: 2492.433378 | AI38: -2.955479452 | AJ38: 0.1708715596 | AK38: -1.137234043 | AL38: -0.04369538077
A39: 101 | B39: 2012 | C39: 290 | D39: 1237 | E39: 14.23 | F39: -9.09 | G39: -0.25155 | H39: 0.00043 | I39: 51.697 | J39: 52.49 | K39: -0.00072 | L39: 0.00029 | M39: -0.02604 | N39: 0.00037 | O39: 0.00179 | P39: 0.00029 | Q39: -0.01084 | R39: 0.00024 | S39: 0.00166 | T39: -14.778 | U39: -5.6902 | V39: 912.58 | W39: 86.065 | X39: -99999 | Y39: -99999 | Z39: 0 | AA39: -0.27954 | AB39: 1666.2 | AF39: 460.2124837 | AG39: 459.8633 | AH39: 2490.024514 | AI39: -2.97260274 | AJ39: 0.2052752294 | AK39: -1.153191489 | AL39: -0.08988764045
A40: 101 | B40: 2012 | C40: 290 | D40: 1238 | E40: 14.23 | F40: -9.11 | G40: -0.25204 | H40: 0.00034 | I40: 51.771 | J40: 52.654 | K40: -0.00067 | L40: 0.00039 | M40: -0.02609 | N40: 0.00033 | O40: 0.00174 | P40: 0.00025 | Q40: -0.01104 | R40: 0.00038 | S40: 0.00169 | T40: -14.789 | U40: -5.6948 | V40: 912.57 | W40: 86.061 | X40: -99999 | Y40: -99999 | Z40: 0 | AA40: -0.30457 | AB40: 1666.2 | AF40: 460.1796524 | AG40: 459.7918044 | AH40: 2492.370778 | AI40: -2.978310502 | AJ40: 0.1995412844 | AK40: -1.174468085 | AL40: -0.0836454432
A41: 101 | B41: 2012 | C41: 290 | D41: 1239 | E41: 14.24 | F41: -9.11 | G41: -0.25237 | H41: 0.00045 | I41: 51.677 | J41: 52.685 | K41: -0.00062 | L41: 0.00027 | M41: -0.02626 | N41: 0.00029 | O41: 0.00149 | P41: 0.00031 | Q41: -0.01121 | R41: 0.00029 | S41: 0.00149 | T41: -14.783 | U41: -5.6924 | V41: 912.6 | W41: 86.065 | X41: -99999 | Y41: -99999 | Z41: 0 | AA41: -0.29206 | AB41: 1666.2 | AF41: 460.2213658 | AG41: 459.7783173 | AH41: 2497.818168 | AI41: -2.997716895 | AJ41: 0.1708715596 | AK41: -1.192553191 | AL41: -0.07740324594
A42: 101 | B42: 2012 | C42: 290 | D42: 1240 | E42: 14.24 | F42: -9.12 | G42: -0.25172 | H42: 0.00043 | I42: 51.827 | J42: 52.751 | K42: -0.00015 | L42: 0.00028 | M42: -0.02609 | N42: 0.00029 | O42: 0.00139 | P42: 0.0003 | Q42: -0.01143 | R42: 0.00033 | S42: 0.00104 | T42: -14.78 | U42: -5.6911 | V42: 912.58 | W42: 86.065 | X42: -99999 | Y42: -99999 | Z42: 0 | AA42: -0.27537 | AB42: 1666.2 | AF42: 460.1548412 | AG42: 459.7496318 | AH42: 2493.376795 | AI42: -2.978310502 | AJ42: 0.1594036697 | AK42: -1.215957447 | AL42: -0.01872659176
A43: 101 | B43: 2012 | C43: 290 | D43: 1241 | E43: 14.24 | F43: -9.13 | G43: -0.2517 | H43: 0.00029 | I43: 51.827 | J43: 52.65 | K43: -0.00057 | L43: 0.00028 | M43: -0.02594 | N43: 0.00035 | O43: 0.00159 | P43: 0.0003 | Q43: -0.01165 | R43: 0.00025 | S43: 0.00141 | T43: -14.772 | U43: -5.6882 | V43: 912.6 | W43: 86.069 | X43: -99999 | Y43: -99999 | Z43: 0.00834 | AA43: -0.28371 | AB43: 1666.2 | AF43: 460.1548412 | AG43: 459.7935453 | AH43: 2489.704785 | AI43: -2.961187215 | AJ43: 0.1823394495 | AK43: -1.239361702 | AL43: -0.07116104869
A44: 101 | B44: 2012 | C44: 290 | D44: 1242 | E44: 14.24 | F44: -9.14 | G44: -0.25152 | H44: 0.00042 | I44: 51.857 | J44: 52.674 | K44: -0.00077 | L44: 0.00037 | M44: -0.02576 | N44: 0.0004 | O44: 0.00159 | P44: 0.00025 | Q44: -0.01175 | R44: 0.00035 | S44: 0.00129 | T44: -14.733 | U44: -5.6732 | V44: 912.59 | W44: 86.081 | X44: -99999 | Y44: -99999 | Z44: 0.00417 | AA44: -0.27537 | AB44: 1666.2 | AF44: 460.1415615 | AG44: 459.7831021 | AH44: 2489.230372 | AI44: -2.940639269 | AJ44: 0.1823394495 | AK44: -1.25 | AL44: -0.0961298377
A45: 101 | B45: 2012 | C45: 290 | D45: 1243 | E45: 14.24 | F45: -9.15 | G45: -0.25123 | H45: 0.00058 | I45: 51.864 | J45: 52.721 | K45: 0.00015 | L45: 0.00042 | M45: -0.02594 | N45: 0.00032 | O45: 0.00136 | P45: 0.00035 | Q45: -0.01158 | R45: 0.00036 | S45: 0.00062 | T45: -14.717 | U45: -5.6669 | V45: 912.57 | W45: 86.086 | X45: -99999 | Y45: -99999 | Z45: 0.00834 | AA45: -0.27954 | AB45: 1666.2 | AF45: 460.1384642 | AG45: 459.7626658 | AH45: 2490.709316 | AI45: -2.961187215 | AJ45: 0.1559633028 | AK45: -1.231914894 | AL45: 0.01872659176
A46: 101 | B46: 2012 | C46: 290 | D46: 1244 | E46: 14.24 | F46: -9.16 | G46: -0.25244 | H46: 0.00038 | I46: 51.877 | J46: 52.793 | K46: -0.0002 | L46: 0.00051 | M46: -0.02594 | N46: 0.00028 | O46: 0.00124 | P46: 0.00029 | Q46: -0.01153 | R46: 0.00038 | S46: 0.00104 | T46: -14.75 | U46: -5.6798 | V46: 912.56 | W46: 86.073 | X46: -99999 | Y46: -99999 | Z46: 0 | AA46: -0.29623 | AB46: 1666.2 | AF46: 460.1327131 | AG46: 459.7313977 | AH46: 2492.319599 | AI46: -2.961187215 | AJ46: 0.1422018349 | AK46: -1.226595745 | AL46: -0.02496878901
A47: 101 | B47: 2012 | C47: 290 | D47: 1245 | E47: 14.24 | F47: -9.18 | G47: -0.25207 | H47: 0.00038 | I47: 51.851 | J47: 52.809 | K47: -0.00057 | L47: 0.00028 | M47: -0.02616 | N47: 0.00027 | O47: 0.00117 | P47: 0.00028 | Q47: -0.01121 | R47: 0.00033 | S47: 0.00122 | T47: -14.743 | U47: -5.6769 | V47: 912.58 | W47: 86.077 | X47: -99999 | Y47: -99999 | Z47: 0.00417 | AA47: -0.27954 | AB47: 1666.2 | AF47: 460.1442168 | AG47: 459.7244555 | AH47: 2494.243025 | AI47: -2.98630137 | AJ47: 0.1341743119 | AK47: -1.192553191 | AL47: -0.07116104869
A48: 101 | B48: 2012 | C48: 290 | D48: 1246 | E48: 14.24 | F48: -9.18 | G48: -0.25264 | H48: 0.00043 | I48: 51.937 | J48: 52.756 | K48: -0.00037 | L48: 0.00031 | M48: -0.02636 | N48: 0.00036 | O48: 0.00129 | P48: 0.00029 | Q48: -0.01106 | R48: 0.00045 | S48: 0.00087 | T48: -14.779 | U48: -5.6907 | V48: 912.58 | W48: 86.065 | X48: -99999 | Y48: -99999 | Z48: 0 | AA48: -0.29206 | AB48: 1666.2 | AF48: 460.10619 | AG48: 459.7474602 | AH48: 2488.09558 | AI48: -3.00913242 | AJ48: 0.1479357798 | AK48: -1.176595745 | AL48: -0.04619225968
A49: 101 | B49: 2012 | C49: 290 | D49: 1247 | E49: 14.24 | F49: -9.2 | G49: -0.25249 | H49: 0.00027 | I49: 52 | J49: 52.848 | K49: -0.00055 | L49: 0.00031 | M49: -0.02668 | N49: 0.0003 | O49: 0.00131 | P49: 0.00028 | Q49: -0.01074 | R49: 0.00036 | S49: 0.00134 | T49: -14.753 | U49: -5.6806 | V49: 912.57 | W49: 86.073 | X49: -99999 | Y49: -99999 | Z49: 0 | AA49: -0.28788 | AB49: 1666.2 | AF49: 460.0783768 | AG49: 459.7075437 | AH49: 2488.538626 | AI49: -3.0456621 | AJ49: 0.1502293578 | AK49: -1.142553191 | AL49: -0.06866416979
A50: 101 | B50: 2012 | C50: 290 | D50: 1248 | E50: 14.24 | F50: -9.2 | G50: -0.25224 | H50: 0.00051 | I50: 51.985 | J50: 52.877 | K50: -0.00017 | L50: 0.00032 | M50: -0.02646 | N50: 0.00028 | O50: 0.00129 | P50: 0.00024 | Q50: -0.01081 | R50: 0.00046 | S50: 0.00064 | T50: -14.742 | U50: -5.6765 | V50: 912.57 | W50: 86.077 | X50: -99999 | Y50: -99999 | Z50: 0.00417 | AA50: -0.30457 | AB50: 1666.2 | AF50: 460.0849957 | AG50: 459.694977 | AH50: 2490.37498 | AI50: -3.020547945 | AJ50: 0.1479357798 | AK50: -1.15 | AL50: -0.02122347066
A51: 101 | B51: 2012 | C51: 290 | D51: 1249 | E51: 14.24 | F51: -9.22 | G51: -0.25348 | H51: 0.00056 | I51: 52.018 | J51: 52.97 | K51: -0.0003 | L51: 0.00045 | M51: -0.02621 | N51: 0.00036 | O51: 0.00112 | P51: 0.00031 | Q51: -0.01066 | R51: 0.00037 | S51: 0.00144 | T51: -14.653 | U51: -5.6423 | V51: 912.55 | W51: 86.106 | X51: -99999 | Y51: -99999 | Z51: 0.00417 | AA51: -0.32543 | AB51: 1666.2 | AF51: 460.070437 | AG51: 459.6547278 | AH51: 2491.792412 | AI51: -2.992009132 | AJ51: 0.128440367 | AK51: -1.134042553 | AL51: -0.03745318352
A52: 101 | B52: 2012 | C52: 290 | D52: 1250 | E52: 14.24 | F52: -9.23 | G52: -0.25435 | H52: 0.00032 | I52: 52.106 | J52: 52.828 | K52: -0.00102 | L52: 0.00033 | M52: -0.02611 | N52: 0.00039 | O52: 0.00114 | P52: 0.00032 | Q52: -0.01046 | R52: 0.00027 | S52: 0.00159 | T52: -14.706 | U52: -5.6628 | V52: 912.57 | W52: 86.09 | X52: -99999 | Y52: -99999 | Z52: 0 | AA52: -0.27537 | AB52: 1666.2 | AF52: 460.0316629 | AG52: 459.7162147 | AH52: 2482.247694 | AI52: -2.980593607 | AJ52: 0.130733945 | AK52: -1.112765957 | AL52: -0.127340824
A53: 101 | B53: 2012 | C53: 290 | D53: 1251 | E53: 14.24 | F53: -9.24 | G53: -0.25502 | H53: 0.00034 | I53: 52.023 | J53: 52.996 | K53: -0.00124 | L53: 0.00029 | M53: -0.02606 | N53: 0.00025 | O53: 0.00124 | P53: 0.00025 | Q53: -0.01007 | R53: 0.00032 | S53: 0.00149 | T53: -14.704 | U53: -5.6619 | V53: 912.57 | W53: 86.09 | X53: -99999 | Y53: -99999 | Z53: 0 | AA53: -0.25868 | AB53: 1666.2 | AF53: 460.068232 | AG53: 459.6434891 | AH53: 2491.99202 | AI53: -2.974885845 | AJ53: 0.1422018349 | AK53: -1.071276596 | AL53: -0.1548064919
A54: 101 | B54: 2012 | C54: 290 | D54: 1252 | E54: 14.24 | F54: -9.25 | G54: -0.25485 | H54: 0.00036 | I54: 52.078 | J54: 52.98 | K54: -0.00082 | L54: 0.00053 | M54: -0.02611 | N54: 0.00024 | O54: 0.00117 | P54: 0.00042 | Q54: -0.00992 | R54: 0.00027 | S54: 0.00129 | T54: -14.79 | U54: -5.6952 | V54: 912.58 | W54: 86.061 | X54: -99999 | Y54: -99999 | Z54: 0 | AA54: -0.27537 | AB54: 1666.2 | AF54: 460.0439924 | AG54: 459.6504045 | AH54: 2488.899554 | AI54: -2.980593607 | AJ54: 0.1341743119 | AK54: -1.055319149 | AL54: -0.102372035
A55: 101 | B55: 2012 | C55: 290 | D55: 1253 | E55: 14.24 | F55: -9.26 | G55: -0.25437 | H55: 0.00038 | I55: 52.144 | J55: 53.044 | K55: 0.00022 | L55: 0.0004 | M55: -0.02591 | N55: 0.00038 | O55: 0.00077 | P55: 0.00025 | Q55: -0.01009 | R55: 0.00028 | S55: 0.0005 | T55: -14.744 | U55: -5.6774 | V55: 912.58 | W55: 86.077 | X55: -99999 | Y55: -99999 | Z55: 0.00834 | AA55: -0.29206 | AB55: 1666.2 | AF55: 460.0149417 | AG55: 459.6227566 | AH55: 2488.292554 | AI55: -2.957762557 | AJ55: 0.08830275229 | AK55: -1.073404255 | AL55: 0.02746566792
A56: 101 | B56: 2012 | C56: 290 | D56: 1254 | E56: 14.24 | F56: -9.27 | G56: -0.25316 | H56: 0.00053 | I56: 52.146 | J56: 52.959 | K56: 0.00139 | L56: 0.00043 | M56: -0.02554 | N56: 0.00037 | O56: 0.00087 | P56: 0.00027 | Q56: -0.01042 | R56: 0.00035 | S56: 7e-05 | T56: -14.705 | U56: -5.6624 | V56: 912.57 | W56: 86.09 | X56: -99999 | Y56: -99999 | Z56: 0.00417 | AA56: -0.3004 | AB56: 1666.2 | AF56: 460.014062 | AG56: 459.6594844 | AH56: 2485.523894 | AI56: -2.915525114 | AJ56: 0.0997706422 | AK56: -1.108510638 | AL56: 0.1735330836
A57: 101 | B57: 2012 | C57: 290 | D57: 1255 | E57: 14.24 | F57: -9.28 | G57: -0.25227 | H57: 0.00055 | I57: 52.045 | J57: 52.974 | K57: 0.00164 | L57: 0.00032 | M57: -0.02502 | N57: 0.00048 | O57: 0.00089 | P57: 0.00034 | Q57: -0.01081 | R57: 0.00043 | S57: 5e-05 | T57: -14.665 | U57: -5.6469 | V57: 912.55 | W57: 86.102 | X57: -99999 | Y57: -99999 | Z57: 0 | AA57: -0.30874 | AB57: 1666.2 | AF57: 460.0585328 | AG57: 459.6529983 | AH57: 2491.07375 | AI57: -2.856164384 | AJ57: 0.1020642202 | AK57: -1.15 | AL57: 0.2047440699
A58: 101 | B58: 2012 | C58: 290 | D58: 1256 | E58: 14.24 | F58: -9.28 | G58: -0.25157 | H58: 0.00038 | I58: 52.118 | J58: 52.949 | K58: 0.00263 | L58: 0.00039 | M58: -0.02428 | N58: 0.00043 | O58: 0.00102 | P58: 0.00029 | Q58: -0.01113 | R58: 0.00046 | S58: -2e-05 | T58: -14.64 | U58: -5.6373 | V58: 912.55 | W58: 86.111 | X58: -99999 | Y58: -99999 | Z58: 0 | AA58: -0.3004 | AB58: 1666.2 | AF58: 460.0263811 | AG58: 459.6638096 | AH58: 2486.991277 | AI58: -2.771689498 | AJ58: 0.1169724771 | AK58: -1.184042553 | AL58: 0.3283395755
A59: 101 | B59: 2012 | C59: 290 | D59: 1257 | E59: 14.24 | F59: -9.3 | G59: -0.25199 | H59: 0.00031 | I59: 52.13 | J59: 52.931 | K59: 0.00275 | L59: 0.0006 | M59: -0.02356 | N59: 0.0004 | O59: 0.00104 | P59: 0.00027 | Q59: -0.01158 | R59: 0.00032 | S59: 0 | T59: -14.628 | U59: -5.6328 | V59: 912.55 | W59: 86.115 | X59: -99999 | Y59: -99999 | Z59: 0.00834 | AA59: -0.28788 | AB59: 1666.2 | AF59: 460.0211006 | AG59: 459.6715971 | AH59: 2485.641336 | AI59: -2.689497717 | AJ59: 0.119266055 | AK59: -1.231914894 | AL59: 0.3433208489
A60: 101 | B60: 2012 | C60: 290 | D60: 1258 | E60: 14.24 | F60: -9.31 | G60: -0.25209 | H60: 0.00039 | I60: 52.167 | J60: 52.872 | K60: 0.00208 | L60: 0.00046 | M60: -0.02304 | N60: 0.00029 | O60: 0.00104 | P60: 0.00031 | Q60: -0.01158 | R60: 0.00032 | S60: 0.0004 | T60: -14.628 | U60: -5.6328 | V60: 912.55 | W60: 86.115 | X60: -99999 | Y60: -99999 | Z60: 0 | AA60: -0.29206 | AB60: 1666.2 | AF60: 460.0048274 | AG60: 459.6971432 | AH60: 2481.745004 | AI60: -2.630136986 | AJ60: 0.119266055 | AK60: -1.231914894 | AL60: 0.2596754057
A61: 101 | B61: 2012 | C61: 290 | D61: 1259 | E61: 14.24 | F61: -9.32 | G61: -0.25269 | H61: 0.00062 | I61: 52.142 | J61: 52.816 | K61: 0.00099 | L61: 0.00027 | M61: -0.02284 | N61: 0.00033 | O61: 0.00122 | P61: 0.00033 | Q61: -0.01143 | R61: 0.00033 | S61: 0.00097 | T61: -14.628 | U61: -5.6328 | V61: 912.55 | W61: 86.115 | X61: -99999 | Y61: -99999 | Z61: 0.00417 | AA61: -0.30457 | AB61: 1666.2 | AF61: 460.0158215 | AG61: 459.7214191 | AH61: 2480.67973 | AI61: -2.607305936 | AJ61: 0.1399082569 | AK61: -1.215957447 | AL61: 0.1235955056
AF62: =1/((0.0010295+0.0002391*LOG(I62*1000)+0.0000001568*LOG(I62*1000)^3)) ->  | AG62: =1/((0.0010295+0.0002391*LOG(J62*1000)+0.0000001568*LOG(J62*1000)^3)) ->  | AH62: =($AE$5*G62)+$AE$6*((1*(AF62^4))+($AE$9*((AF62^4)-(AG62^4)))) ->  | AI62: =1000*(M62/$AE$10) -> 0 | AJ62: =1000*(O62/$AE$11) -> 0 | AK62: =1000*(Q62/$AE$12) -> 0 | AL62: =1000*(K62/$AE$14) -> 0
AI63: 0 | AJ63: 0 | AK63: 0 | AL63: 0
AI64: 0 | AJ64: 0 | AK64: 0 | AL64: 0
AI65: 0 | AJ65: 0 | AK65: 0 | AL65: 0
AI66: 0 | AJ66: 0 | AK66: 0 | AL66: 0
AI67: 0 | AJ67: 0 | AK67: 0 | AL67: 0
AI68: 0 | AJ68: 0 | AK68: 0 | AL68: 0
AI69: 0 | AJ69: 0 | AK69: 0 | AL69: 0
AI70: 0 | AJ70: 0 | AK70: 0 | AL70: 0
AI71: 0 | AJ71: 0 | AK71: 0 | AL71: 0
AI72: 0 | AJ72: 0 | AK72: 0 | AL72: 0
AI73: 0 | AJ73: 0 | AK73: 0 | AL73: 0
AI74: 0 | AJ74: 0 | AK74: 0 | AL74: 0
AI75: 0 | AJ75: 0 | AK75: 0 | AL75: 0
AI76: 0 | AJ76: 0 | AK76: 0 | AL76: 0
AI77: 0 | AJ77: 0 | AK77: 0 | AL77: 0
AI78: 0 | AJ78: 0 | AK78: 0 | AL78: 0
AI79: 0 | AJ79: 0 | AK79: 0 | AL79: 0
AI80: 0 | AJ80: 0 | AK80: 0 | AL80: 0
AI81: 0 | AJ81: 0 | AK81: 0 | AL81: 0
AI82: 0 | AJ82: 0 | AK82: 0 | AL82: 0
AI83: 0 | AJ83: 0 | AK83: 0 | AL83: 0
AI84: 0 | AJ84: 0 | AK84: 0 | AL84: 0
AI85: 0 | AJ85: 0 | AK85: 0 | AL85: 0
AI86: 0 | AJ86: 0 | AK86: 0 | AL86: 0
AI87: 0 | AJ87: 0 | AK87: 0 | AL87: 0
AI88: 0 | AJ88: 0 | AK88: 0 | AL88: 0
AI89: 0 | AJ89: 0 | AK89: 0 | AL89: 0
AI90: 0 | AJ90: 0 | AK90: 0 | AL90: 0
AI91: 0 | AJ91: 0 | AK91: 0 | AL91: 0
AI92: 0 | AJ92: 0 | AK92: 0 | AL92: 0
AI93: 0 | AJ93: 0 | AK93: 0 | AL93: 0
AI94: 0 | AJ94: 0 | AK94: 0 | AL94: 0
AI95: 0 | AJ95: 0 | AK95: 0 | AL95: 0
AI96: 0 | AJ96: 0 | AK96: 0 | AL96: 0
AI97: 0 | AJ97: 0 | AK97: 0 | AL97: 0
AI98: 0 | AJ98: 0 | AK98: 0 | AL98: 0
AI99: 0 | AJ99: 0 | AK99: 0 | AL99: 0
AI100: 0 | AJ100: 0 | AK100: 0 | AL100: 0
AI101: 0 | AJ101: 0 | AK101: 0 | AL101: 0
AI102: 0 | AJ102: 0 | AK102: 0 | AL102: 0
AI103: 0 | AJ103: 0 | AK103: 0 | AL103: 0
AI104: 0 | AJ104: 0 | AK104: 0 | AL104: 0
AI105: 0 | AJ105: 0 | AK105: 0 | AL105: 0
AI106: 0 | AJ106: 0 | AK106: 0 | AL106: 0
AI107: 0 | AJ107: 0 | AK107: 0 | AL107: 0
AI108: 0 | AJ108: 0 | AK108: 0 | AL108: 0
AI109: 0 | AJ109: 0 | AK109: 0 | AL109: 0
AI110: 0 | AJ110: 0 | AK110: 0 | AL110: 0
AI111: 0 | AJ111: 0 | AK111: 0 | AL111: 0
AI112: 0 | AJ112: 0 | AK112: 0 | AL112: 0
AI113: 0 | AJ113: 0 | AK113: 0 | AL113: 0
AI114: 0 | AJ114: 0 | AK114: 0 | AL114: 0
AI115: 0 | AJ115: 0 | AK115: 0 | AL115: 0
AI116: 0 | AJ116: 0 | AK116: 0 | AL116: 0
AI117: 0 | AJ117: 0 | AK117: 0 | AL117: 0
AI118: 0 | AJ118: 0 | AK118: 0 | AL118: 0
AI119: 0 | AJ119: 0 | AK119: 0 | AL119: 0
AI120: 0 | AJ120: 0 | AK120: 0 | AL120: 0
AI121: 0 | AJ121: 0 | AK121: 0 | AL121: 0
AI122: 0 | AJ122: 0 | AK122: 0 | AL122: 0
AI123: 0 | AJ123: 0 | AK123: 0 | AL123: 0
AI124: 0 | AJ124: 0 | AK124: 0 | AL124: 0
AI125: 0 | AJ125: 0 | AK125: 0 | AL125: 0
AF126: =1/((0.0010295+0.0002391*LOG(I126*1000)+0.0000001568*LOG(I126*1000)^3)) ->  | AG126: =1/((0.0010295+0.0002391*LOG(J126*1000)+0.0000001568*LOG(J126*1000)^3)) ->  | AH126: =($AE$5*G126)+$AE$6*((1*(AF126^4))+($AE$9*((AF126^4)-(AG126^4)))) ->  | AI126: =1000*(M126/$AE$10) -> 0 | AJ126: =1000*(O126/$AE$11) -> 0 | AK126: =1000*(Q126/$AE$12) -> 0 | AL126: =1000*(K126/$AE$14) -> 0
AI127: 0 | AJ127: 0 | AK127: 0 | AL127: 0
AI128: 0 | AJ128: 0 | AK128: 0 | AL128: 0
AI129: 0 | AJ129: 0 | AK129: 0 | AL129: 0
AI130: 0 | AJ130: 0 | AK130: 0 | AL130: 0
AI131: 0 | AJ131: 0 | AK131: 0 | AL131: 0
AI132: 0 | AJ132: 0 | AK132: 0 | AL132: 0
AI133: 0 | AJ133: 0 | AK133: 0 | AL133: 0
AI134: 0 | AJ134: 0 | AK134: 0 | AL134: 0
AI135: 0 | AJ135: 0 | AK135: 0 | AL135: 0
AI136: 0 | AJ136: 0 | AK136: 0 | AL136: 0
AI137: 0 | AJ137: 0 | AK137: 0 | AL137: 0
AI138: 0 | AJ138: 0 | AK138: 0 | AL138: 0
AI139: 0 | AJ139: 0 | AK139: 0 | AL139: 0
AI140: 0 | AJ140: 0 | AK140: 0 | AL140: 0
AI141: 0 | AJ141: 0 | AK141: 0 | AL141: 0
AI142: 0 | AJ142: 0 | AK142: 0 | AL142: 0
AI143: 0 | AJ143: 0 | AK143: 0 | AL143: 0
AI144: 0 | AJ144: 0 | AK144: 0 | AL144: 0
AI145: 0 | AJ145: 0 | AK145: 0 | AL145: 0
AI146: 0 | AJ146: 0 | AK146: 0 | AL146: 0
AI147: 0 | AJ147: 0 | AK147: 0 | AL147: 0
AI148: 0 | AJ148: 0 | AK148: 0 | AL148: 0
AI149: 0 | AJ149: 0 | AK149: 0 | AL149: 0
AI150: 0 | AJ150: 0 | AK150: 0 | AL150: 0
AI151: 0 | AJ151: 0 | AK151: 0 | AL151: 0
AI152: 0 | AJ152: 0 | AK152: 0 | AL152: 0
AI153: 0 | AJ153: 0 | AK153: 0 | AL153: 0
AI154: 0 | AJ154: 0 | AK154: 0 | AL154: 0
AI155: 0 | AJ155: 0 | AK155: 0 | AL155: 0
AI156: 0 | AJ156: 0 | AK156: 0 | AL156: 0
AI157: 0 | AJ157: 0 | AK157: 0 | AL157: 0
AI158: 0 | AJ158: 0 | AK158: 0 | AL158: 0
AI159: 0 | AJ159: 0 | AK159: 0 | AL159: 0
AI160: 0 | AJ160: 0 | AK160: 0 | AL160: 0
AI161: 0 | AJ161: 0 | AK161: 0 | AL161: 0
AI162: 0 | AJ162: 0 | AK162: 0 | AL162: 0
AI163: 0 | AJ163: 0 | AK163: 0 | AL163: 0
AI164: 0 | AJ164: 0 | AK164: 0 | AL164: 0
AI165: 0 | AJ165: 0 | AK165: 0 | AL165: 0
AI166: 0 | AJ166: 0 | AK166: 0 | AL166: 0
AI167: 0 | AJ167: 0 | AK167: 0 | AL167: 0
AI168: 0 | AJ168: 0 | AK168: 0 | AL168: 0
AI169: 0 | AJ169: 0 | AK169: 0 | AL169: 0
AI170: 0 | AJ170: 0 | AK170: 0 | AL170: 0
AI171: 0 | AJ171: 0 | AK171: 0 | AL171: 0
AI172: 0 | AJ172: 0 | AK172: 0 | AL172: 0
AI173: 0 | AJ173: 0 | AK173: 0 | AL173: 0
AI174: 0 | AJ174: 0 | AK174: 0 | AL174: 0
AI175: 0 | AJ175: 0 | AK175: 0 | AL175: 0
AI176: 0 | AJ176: 0 | AK176: 0 | AL176: 0
AI177: 0 | AJ177: 0 | AK177: 0 | AL177: 0
AI178: 0 | AJ178: 0 | AK178: 0 | AL178: 0
AI179: 0 | AJ179: 0 | AK179: 0 | AL179: 0
AI180: 0 | AJ180: 0 | AK180: 0 | AL180: 0
AI181: 0 | AJ181: 0 | AK181: 0 | AL181: 0
AI182: 0 | AJ182: 0 | AK182: 0 | AL182: 0
AI183: 0 | AJ183: 0 | AK183: 0 | AL183: 0
AI184: 0 | AJ184: 0 | AK184: 0 | AL184: 0
AI185: 0 | AJ185: 0 | AK185: 0 | AL185: 0
AI186: 0 | AJ186: 0 | AK186: 0 | AL186: 0
AI187: 0 | AJ187: 0 | AK187: 0 | AL187: 0
AI188: 0 | AJ188: 0 | AK188: 0 | AL188: 0
AI189: 0 | AJ189: 0 | AK189: 0 | AL189: 0
AF190: =1/((0.0010295+0.0002391*LOG(I190*1000)+0.0000001568*LOG(I190*1000)^3)) ->  | AG190: =1/((0.0010295+0.0002391*LOG(J190*1000)+0.0000001568*LOG(J190*1000)^3)) ->  | AH190: =($AE$5*G190)+$AE$6*((1*(AF190^4))+($AE$9*((AF190^4)-(AG190^4)))) ->  | AI190: =1000*(M190/$AE$10) -> 0 | AJ190: =1000*(O190/$AE$11) -> 0 | AK190: =1000*(Q190/$AE$12) -> 0 | AL190: =1000*(K190/$AE$14) -> 0
AI191: 0 | AJ191: 0 | AK191: 0 | AL191: 0
AI192: 0 | AJ192: 0 | AK192: 0 | AL192: 0
AI193: 0 | AJ193: 0 | AK193: 0 | AL193: 0
AI194: 0 | AJ194: 0 | AK194: 0 | AL194: 0
AI195: 0 | AJ195: 0 | AK195: 0 | AL195: 0
AI196: 0 | AJ196: 0 | AK196: 0 | AL196: 0
AI197: 0 | AJ197: 0 | AK197: 0 | AL197: 0
AI198: 0 | AJ198: 0 | AK198: 0 | AL198: 0
AI199: 0 | AJ199: 0 | AK199: 0 | AL199: 0
AI200: 0 | AJ200: 0 | AK200: 0 | AL200: 0
... 473 more rows

Sheet daily plot_rad1

Sheet BSRN_rad2
A1: Line ID | B1: Year | C1: Julian Day | D1: Time | E1: Campbell Battery Voltage | F1: Campbell CR10X temp (deg C) | G1: PIR thermopile (mV) | H1: PIR thermopile std (mV) | I1: PIR temp case (mV) | J1: PIR temp dome (mV) | K1: PSP thermopile (mV) | L1: PSP thermopile std (mV) | N1: Smoothed data with calibration factors --> | Q1: PIR temp case (deg K) | R1: PIR temp dome (deg K) | S1: Calculated PIR thermopile (W/m^2) | T1: Calculated PSP thermopile (W/m^2)
N2: PIR cal # (SF) | O2: PSP cal # (SF) | Q2: =1/((0.0010295+0.0002391*LOG(I2*1000)+0.0000001568*LOG(I2*1000)^3)) ->  | R2: =1/((0.0010295+0.0002391*LOG(J2*1000)+0.0000001568*LOG(J2*1000)^3)) ->  | S2: =($O$5*G2)+$O$6*((1*(Q2^4))+($O$11*((Q2^4)-(R2^4)))) ->  | T2: =1000*(K2/$O$3) -> 0
N3: =(1/268.42)*1000 -> 3.725504806 | O3: 7.96 | Q3: =1/((0.0010295+0.0002391*LOG(I3*1000)+0.0000001568*LOG(I3*1000)^3)) ->  | R3: =1/((0.0010295+0.0002391*LOG(J3*1000)+0.0000001568*LOG(J3*1000)^3)) ->  | S3: =($O$5*G3)+$O$6*((1*(Q3^4))+($O$11*((Q3^4)-(R3^4)))) ->  | T3: =1000*(K3/$O$3) -> 0
N4: [above] cal units: microvolts/watt/square meter | T4: =1000*(K4/$O$3) -> 0
N5: PIR cal # (SF) in W/mV/m^2 | O5: 268.42 | T5: =1000*(K5/$O$3) -> 0
N6: sigma | O6: =5.6704*(10^(-8)) -> 5.6704e-08 | T6: 0
N7: TC | O7: 1/((0.0010295+0.0002391*log(TCR*1000)+0.0000001568*log(TCR*1000)^3)) | T7: 0
N8: TD | O8: 1/((0.0010295+0.0002391*log(TDR*1000)+0.0000001568*log(TDR*1000)^3)) | T8: 0
T9: 0
T10: 0
N11: dome correction factor | O11: 3.8 | T11: 0
T12: 0
T13: 0
T14: 0
T15: 0
T16: 0
T17: 0
T18: 0
T19: 0
T20: 0
T21: 0
T22: 0
T23: 0
T24: 0
T25: 0
T26: 0
T27: 0
T28: 0
T29: 0
T30: 0
T31: 0
T32: 0
T33: 0
T34: 0
T35: 0
T36: 0
T37: 0
T38: 0
Q39: =1/((0.0010295+0.0002391*LOG(I39*1000)+0.0000001568*LOG(I39*1000)^3)) ->  | R39: =1/((0.0010295+0.0002391*LOG(J39*1000)+0.0000001568*LOG(J39*1000)^3)) ->  | S39: =($O$5*G39)+$O$6*((1*(Q39^4))+($O$11*((Q39^4)-(R39^4)))) ->  | T39: =1000*(K39/$O$3) -> 0
T40: 0
T41: 0
T42: 0
T43: 0
T44: 0
T45: 0
T46: 0
T47: 0
T48: 0
T49: 0
T50: 0
T51: 0
T52: 0
T53: 0
T54: 0
T55: 0
T56: 0
T57: 0
T58: 0
T59: 0
T60: 0
T61: 0
T62: 0
T63: 0
T64: 0
T65: 0
T66: 0
T67: 0
T68: 0
T69: 0
T70: 0
T71: 0
T72: 0
T73: 0
T74: 0
T75: 0
T76: 0
T77: 0
T78: 0
T79: 0
T80: 0
T81: 0
T82: 0
T83: 0
T84: 0
T85: 0
T86: 0
T87: 0
T88: 0
T89: 0
T90: 0
T91: 0
T92: 0
T93: 0
T94: 0
T95: 0
T96: 0
T97: 0
T98: 0
T99: 0
T100: 0
T101: 0
T102: 0
Q103: =1/((0.0010295+0.0002391*LOG(I103*1000)+0.0000001568*LOG(I103*1000)^3)) ->  | R103: =1/((0.0010295+0.0002391*LOG(J103*1000)+0.0000001568*LOG(J103*1000)^3)) ->  | S103: =($O$5*G103)+$O$6*((1*(Q103^4))+($O$11*((Q103^4)-(R103^4)))) ->  | T103: =1000*(K103/$O$3) -> 0
T104: 0
T105: 0
T106: 0
T107: 0
T108: 0
T109: 0
T110: 0
T111: 0
T112: 0
T113: 0
T114: 0
T115: 0
T116: 0
T117: 0
T118: 0
T119: 0
T120: 0
T121: 0
T122: 0
T123: 0
T124: 0
T125: 0
T126: 0
T127: 0
T128: 0
T129: 0
T130: 0
T131: 0
T132: 0
T133: 0
T134: 0
T135: 0
T136: 0
T137: 0
T138: 0
T139: 0
T140: 0
T141: 0
T142: 0
T143: 0
T144: 0
T145: 0
T146: 0
T147: 0
T148: 0
T149: 0
T150: 0
T151: 0
T152: 0
T153: 0
T154: 0
T155: 0
T156: 0
T157: 0
T158: 0
T159: 0
T160: 0
T161: 0
T162: 0
T163: 0
T164: 0
T165: 0
T166: 0
Q167: =1/((0.0010295+0.0002391*LOG(I167*1000)+0.0000001568*LOG(I167*1000)^3)) ->  | R167: =1/((0.0010295+0.0002391*LOG(J167*1000)+0.0000001568*LOG(J167*1000)^3)) ->  | S167: =($O$5*G167)+$O$6*((1*(Q167^4))+($O$11*((Q167^4)-(R167^4)))) ->  | T167: =1000*(K167/$O$3) -> 0
T168: 0
T169: 0
T170: 0
T171: 0
T172: 0
T173: 0
T174: 0
T175: 0
T176: 0
T177: 0
T178: 0
T179: 0
T180: 0
T181: 0
T182: 0
T183: 0
T184: 0
T185: 0
T186: 0
T187: 0
T188: 0
T189: 0
T190: 0
T191: 0
T192: 0
T193: 0
T194: 0
T195: 0
T196: 0
T197: 0
T198: 0
T199: 0
T200: 0
... 536 more rows

Sheet daily plot_rad2
